[Event "*** Titled Tuesday Blitz"]
[Site "Chess.com"]
[Date "2018.01.02"]
[Round "8"]
[White "Divertissement"]
[Black "1e41-0"]
[Result "1-0"]
[WhiteElo "2428"]
[BlackElo "2356"]
[TimeControl "180+2"]
[EndTime "14:48:53 PST"]
[Termination "Divertissement won by resignation"]

1. b3 {[%clk 0:03:01.9]} 1... e5 {[%clk 0:03:00.3]} 2. Bb2 {[%clk 0:03:02.2]}
2... Nc6 {[%clk 0:03:01.5]} 3. e3 {[%clk 0:03:03.6]} 3... Nf6 {[%clk 0:03:02.1]}
4. Bb5 {[%clk 0:03:04.4]} 4... Bd6 {[%clk 0:03:02.2]} 5. Na3 {[%clk 0:03:04.4]}
5... Na5 {[%clk 0:03:03.1]} 6. Nc4 {[%clk 0:03:00.1]} 6... Nxc4 {[%clk
0:03:03.2]} 7. Bxc4 {[%clk 0:03:01.2]} 7... c6 {[%clk 0:03:03.3]} 8. Nf3 {[%clk
0:02:54.8]} 8... Qe7 {[%clk 0:03:02.7]} 9. O-O {[%clk 0:02:52.1]} 9... O-O
{[%clk 0:03:00.6]} 10. a4 {[%clk 0:02:50.9]} 10... Bc7 {[%clk 0:03:00.8]} 11.
Be2 {[%clk 0:02:39.4]} 11... d5 {[%clk 0:03:00.1]} 12. d4 {[%clk 0:02:15]} 12...
e4 {[%clk 0:02:57.1]} 13. Ne5 {[%clk 0:02:16.4]} 13... Nd7 {[%clk 0:02:51.5]}
14. Nxd7 {[%clk 0:02:16.8]} 14... Bxd7 {[%clk 0:02:49.6]} 15. Qd2 {[%clk
0:02:10.8]} 15... Bd6 {[%clk 0:02:50.5]} 16. c4 {[%clk 0:02:07.4]} 16... f5
{[%clk 0:02:49.8]} 17. f4 {[%clk 0:02:02.3]} 17... Kh8 {[%clk 0:02:31.7]} 18. g3
{[%clk 0:02:00.8]} 18... h6 {[%clk 0:02:23.2]} 19. h4 {[%clk 0:01:59.5]} 19...
Bb4 {[%clk 0:02:13.9]} 20. Bc3 {[%clk 0:01:59.6]} 20... a5 {[%clk 0:02:09]} 21.
Bxb4 {[%clk 0:01:59.6]} 21... Qxb4 {[%clk 0:02:07.9]} 22. Qxb4 {[%clk
0:01:58.7]} 22... axb4 {[%clk 0:02:09.8]} 23. cxd5 {[%clk 0:01:58.4]} 23... cxd5
{[%clk 0:02:10.4]} 24. Rfc1 {[%clk 0:01:57.7]} 24... Rfc8 {[%clk 0:02:10.6]} 25.
Rc5 {[%clk 0:01:58.7]} 25... Rxc5 {[%clk 0:02:07.5]} 26. dxc5 {[%clk 0:02:00.6]}
26... Rc8 {[%clk 0:02:07.1]} 27. Rd1 {[%clk 0:01:41.4]} 27... Rxc5 {[%clk
0:02:06.8]} 28. Rd4 {[%clk 0:01:43]} 28... Bc6 {[%clk 0:01:47.5]} 29. Rxb4
{[%clk 0:01:40.2]} 29... Rc2 {[%clk 0:01:46.1]} 30. Kf1 {[%clk 0:01:40.9]} 30...
Kg8 {[%clk 0:01:42.7]} 31. a5 {[%clk 0:01:28]} 31... Ra2 {[%clk 0:01:36.5]} 32.
a6 {[%clk 0:01:29.2]} 32... bxa6 {[%clk 0:01:33.7]} 33. Rb6 {[%clk 0:01:30.3]}
33... Bb5 {[%clk 0:01:06.9]} 34. Bxb5 {[%clk 0:01:28.2]} 34... axb5 {[%clk
0:01:08.8]} 35. Rxb5 {[%clk 0:01:28.9]} 35... Rd2 {[%clk 0:01:09]} 36. Ke1
{[%clk 0:01:16.5]} 36... Rb2 {[%clk 0:00:52.3]} 37. Rxd5 {[%clk 0:01:06.4]}
37... Rxb3 {[%clk 0:00:53.1]} 38. Kd2 {[%clk 0:01:01.4]} 38... g6 {[%clk
0:00:52.5]} 39. h5 {[%clk 0:01:02.1]} 39... Rb2+ {[%clk 0:00:36.3]} 40. Kc3
{[%clk 0:01:00.4]} 40... Rg2 {[%clk 0:00:36.7]} 41. hxg6 {[%clk 0:00:59.2]}
41... Rxg3 {[%clk 0:00:37.8]} 42. Kd4 {[%clk 0:01:00.8]} 42... Rxg6 {[%clk
0:00:34.5]} 43. Rxf5 {[%clk 0:01:01.5]} 43... Rg1 {[%clk 0:00:33.2]} 44. Kxe4
{[%clk 0:01:02.3]} 44... Kg7 {[%clk 0:00:34.7]} 45. Ke5 {[%clk 0:01:02]} 45...
Kg6 {[%clk 0:00:34.1]} 46. Rf6+ {[%clk 0:01:02.6]} 46... Kg7 {[%clk 0:00:34.5]}
47. Ra6 {[%clk 0:00:58.2]} 47... h5 {[%clk 0:00:32.1]} 48. Ra7+ {[%clk
0:00:57.7]} 48... Kh6 {[%clk 0:00:28.1]} 49. f5 {[%clk 0:00:57.6]} 49... h4
{[%clk 0:00:27]} 50. e4 {[%clk 0:00:53.7]} 50... h3 {[%clk 0:00:26.3]} 51. Ra3
{[%clk 0:00:53.2]} 51... Rh1 {[%clk 0:00:23.7]} 52. Kf6 {[%clk 0:00:52.7]} 52...
Kh5 {[%clk 0:00:22]} 53. e5 {[%clk 0:00:52.9]} 53... Kg4 {[%clk 0:00:22.9]} 54.
Ra4+ {[%clk 0:00:49.5]} 54... Kg3 {[%clk 0:00:24]} 55. e6 {[%clk 0:00:50.4]}
55... Re1 {[%clk 0:00:23.6]} 56. Ra3+ {[%clk 0:00:50.3]} 56... Kg2 {[%clk
0:00:24.5]} 57. Ra2+ {[%clk 0:00:51]} 57... Kf3 {[%clk 0:00:24.5]} 58. Kf7
{[%clk 0:00:51.1]} 58... Re2 {[%clk 0:00:16.9]} 59. Rxe2 {[%clk 0:00:48.8]}
59... Kxe2 {[%clk 0:00:18.8]} 60. e7 {[%clk 0:00:50.3]} 60... h2 {[%clk
0:00:20.5]} 61. e8=Q+ {[%clk 0:00:52.2]} 61... Kf2 {[%clk 0:00:22.1]} 62. Qa8
{[%clk 0:00:50.7]} 62... Kg1 {[%clk 0:00:24]} 63. f6 {[%clk 0:00:51.3]} 63...
h1=Q {[%clk 0:00:25.9]} 1-0

[Event "*** Titled Tuesday Blitz"]
[Site "Chess.com"]
[Date "2018.01.02"]
[Round "8"]
[White "plouarzel"]
[Black "chesstatour"]
[Result "1/2-1/2"]
[WhiteElo "2318"]
[BlackElo "2038"]
[TimeControl "180+2"]
[EndTime "14:49:01 PST"]
[Termination "Game drawn - insufficient material"]

1. e4 {[%clk 0:03:01.9]} 1... c6 {[%clk 0:03:00.5]} 2. Nf3 {[%clk 0:03:00.9]}
2... d5 {[%clk 0:03:01.1]} 3. Nc3 {[%clk 0:03:01.6]} 3... dxe4 {[%clk
0:02:45.3]} 4. Nxe4 {[%clk 0:03:02.4]} 4... Nf6 {[%clk 0:02:46.8]} 5. Qe2 {[%clk
0:02:58.8]} 5... Nxe4 {[%clk 0:02:29.2]} 6. Qxe4 {[%clk 0:02:58.6]} 6... Qd5
{[%clk 0:01:54.2]} 7. Qe2 {[%clk 0:02:30.1]} 7... Bg4 {[%clk 0:01:50.1]} 8. b3
{[%clk 0:02:20.1]} 8... Bxf3 {[%clk 0:01:25.4]} 9. gxf3 {[%clk 0:02:20.5]} 9...
Nd7 {[%clk 0:01:20.9]} 10. Bb2 {[%clk 0:02:21.4]} 10... Nf6 {[%clk 0:01:17.1]}
11. O-O-O {[%clk 0:02:15.3]} 11... e6 {[%clk 0:01:01.6]} 12. Rg1 {[%clk
0:02:13.6]} 12... O-O-O {[%clk 0:00:56.7]} 13. h4 {[%clk 0:01:44]} 13... h6
{[%clk 0:00:49.8]} 14. Bh3 {[%clk 0:01:10.6]} 14... Nh5 {[%clk 0:00:45.2]} 15.
Qe4 {[%clk 0:01:05]} 15... f5 {[%clk 0:00:11.4]} 16. Qa4 {[%clk 0:00:59.1]}
16... Kb8 {[%clk 0:00:08.8]} 17. Rge1 {[%clk 0:01:00]} 17... Bd6 {[%clk
0:00:05.2]} 18. d4 {[%clk 0:00:30.5]} 18... Rhe8 {[%clk 0:00:04.4]} 19. Bf1
{[%clk 0:00:27.2]} 19... Qxf3 {[%clk 0:00:03.9]} 20. Be2 {[%clk 0:00:21.4]}
20... Qf4+ {[%clk 0:00:04.9]} 21. Kb1 {[%clk 0:00:22.7]} 21... Nf6 {[%clk
0:00:04.9]} 22. c4 {[%clk 0:00:12.5]} 22... Bc7 {[%clk 0:00:04.6]} 23. Bf1
{[%clk 0:00:04.2]} 23... Qxh4 {[%clk 0:00:04.1]} 24. c5 {[%clk 0:00:03.2]} 24...
Nd5 {[%clk 0:00:04.3]} 25. Qc4 {[%clk 0:00:03]} 25... Qf6 {[%clk 0:00:03.6]} 26.
Ka1 {[%clk 0:00:04.2]} 26... e5 {[%clk 0:00:03.7]} 27. dxe5 {[%clk 0:00:05]}
27... Bxe5 {[%clk 0:00:04.8]} 28. Bxe5+ {[%clk 0:00:04.9]} 28... Rxe5 {[%clk
0:00:06.7]} 29. Kb1 {[%clk 0:00:05.3]} 29... Rxe1 {[%clk 0:00:06.6]} 30. Rxe1
{[%clk 0:00:06.6]} 30... Nc3+ {[%clk 0:00:07.8]} 31. Kc2 {[%clk 0:00:07.9]}
31... Ne4 {[%clk 0:00:07.9]} 32. Bd3 {[%clk 0:00:04.6]} 32... Nxf2 {[%clk
0:00:07.4]} 33. Qf4+ {[%clk 0:00:05.7]} 33... Ka8 {[%clk 0:00:06.8]} 34. Qxf2
{[%clk 0:00:06.8]} 34... f4 {[%clk 0:00:07.1]} 35. Re4 {[%clk 0:00:07.1]} 35...
g5 {[%clk 0:00:07.9]} 36. Qe1 {[%clk 0:00:06.8]} 36... a6 {[%clk 0:00:06.3]} 37.
Re8 {[%clk 0:00:07.4]} 37... Rxe8 {[%clk 0:00:07.4]} 38. Qxe8+ {[%clk
0:00:09.3]} 38... Ka7 {[%clk 0:00:08.9]} 39. Qe4 {[%clk 0:00:06.7]} 39... f3
{[%clk 0:00:09.3]} 40. Qf5 {[%clk 0:00:07.5]} 40... Qxf5 {[%clk 0:00:08.5]} 41.
Bxf5 {[%clk 0:00:08.4]} 41... f2 {[%clk 0:00:10]} 42. Bh3 {[%clk 0:00:08.7]}
42... b6 {[%clk 0:00:10.6]} 43. cxb6+ {[%clk 0:00:09.3]} 43... Kxb6 {[%clk
0:00:12.5]} 44. Kd2 {[%clk 0:00:10.6]} 44... h5 {[%clk 0:00:12.4]} 45. Ke3
{[%clk 0:00:11.1]} 45... g4 {[%clk 0:00:13.6]} 46. Bf1 {[%clk 0:00:12.1]} 46...
g3 {[%clk 0:00:14.2]} 47. Kf3 {[%clk 0:00:13.1]} 47... h4 {[%clk 0:00:15.3]} 48.
Kg4 {[%clk 0:00:14.2]} 48... Kc5 {[%clk 0:00:16.6]} 49. Kxh4 {[%clk 0:00:07.1]}
49... Kb4 {[%clk 0:00:16.4]} 50. Kxg3 {[%clk 0:00:07.4]} 50... a5 {[%clk
0:00:18]} 51. Kxf2 {[%clk 0:00:05.5]} 51... Ka3 {[%clk 0:00:19.4]} 52. Ke3
{[%clk 0:00:04.8]} 52... Kxa2 {[%clk 0:00:20.8]} 53. Bc4 {[%clk 0:00:05.8]}
53... Ka3 {[%clk 0:00:21.4]} 54. Kd4 {[%clk 0:00:03.7]} 54... Kb4 {[%clk
0:00:20.8]} 55. Kd3 {[%clk 0:00:03.9]} 55... a4 {[%clk 0:00:21.1]} 56. bxa4
{[%clk 0:00:05.2]} 56... Kxa4 {[%clk 0:00:23]} 57. Bg8 {[%clk 0:00:06.3]} 57...
Kb4 {[%clk 0:00:23.8]} 58. Kd2 {[%clk 0:00:07.7]} 58... c5 {[%clk 0:00:25.7]}
59. Kc1 {[%clk 0:00:09.3]} 59... c4 {[%clk 0:00:25.5]} 60. Bxc4 {[%clk 0:00:09]}
1/2-1/2

[Event "*** Titled Tuesday Blitz"]
[Site "Chess.com"]
[Date "2018.01.02"]
[Round "8"]
[White "NewBornNow"]
[Black "SmoothAsAHedgehog"]
[Result "0-1"]
[WhiteElo "2671"]
[BlackElo "2553"]
[TimeControl "180+2"]
[EndTime "14:49:13 PST"]
[Termination "SmoothAsAHedgehog won by checkmate"]

1. e4 {[%clk 0:03:01.9]} 1... e5 {[%clk 0:03:00.5]} 2. Nf3 {[%clk 0:03:02.4]}
2... Nc6 {[%clk 0:03:01.8]} 3. Bc4 {[%clk 0:03:03]} 3... Bc5 {[%clk 0:03:02.2]}
4. O-O {[%clk 0:03:03.1]} 4... Nf6 {[%clk 0:03:03.3]} 5. d3 {[%clk 0:03:03.5]}
5... d6 {[%clk 0:03:04.2]} 6. c3 {[%clk 0:03:00.5]} 6... Bb6 {[%clk 0:03:05.1]}
7. Re1 {[%clk 0:02:58.8]} 7... O-O {[%clk 0:03:06.1]} 8. h3 {[%clk 0:02:59.3]}
8... Ne7 {[%clk 0:03:06.9]} 9. Bb3 {[%clk 0:02:57.6]} 9... Ng6 {[%clk
0:03:07.9]} 10. d4 {[%clk 0:02:58]} 10... h6 {[%clk 0:03:06.8]} 11. Nbd2 {[%clk
0:02:58.7]} 11... Nh7 {[%clk 0:03:06.6]} 12. Nf1 {[%clk 0:02:56.9]} 12... Qf6
{[%clk 0:03:06.8]} 13. Ng3 {[%clk 0:02:56.7]} 13... Ng5 {[%clk 0:02:59.9]} 14.
Nxg5 {[%clk 0:02:38.6]} 14... hxg5 {[%clk 0:03:01.8]} 15. Nh5 {[%clk 0:02:35.2]}
15... Qe7 {[%clk 0:03:01.4]} 16. Qf3 {[%clk 0:02:19.9]} 16... Nf4 {[%clk
0:02:38]} 17. dxe5 {[%clk 0:01:58.8]} 17... dxe5 {[%clk 0:02:36.6]} 18. Be3
{[%clk 0:01:58.9]} 18... g6 {[%clk 0:02:35.3]} 19. Nxf4 {[%clk 0:01:53.5]} 19...
gxf4 {[%clk 0:02:37.2]} 20. Bxb6 {[%clk 0:01:53.5]} 20... axb6 {[%clk
0:02:39.1]} 21. Rad1 {[%clk 0:01:53.1]} 21... Kg7 {[%clk 0:02:36]} 22. Qd3
{[%clk 0:01:43.6]} 22... Qf6 {[%clk 0:02:28.7]} 23. f3 {[%clk 0:01:40.3]} 23...
Rh8 {[%clk 0:02:28.2]} 24. Kf2 {[%clk 0:01:27]} 24... Bxh3 {[%clk 0:01:12.4]}
25. Qf1 {[%clk 0:00:22.8]} 25... Be6 {[%clk 0:00:51.7]} 26. Bxe6 {[%clk
0:00:20]} 26... Qxe6 {[%clk 0:00:53.6]} 27. a3 {[%clk 0:00:19.8]} 27... Qe7
{[%clk 0:00:47.3]} 28. Qb5 {[%clk 0:00:19.8]} 28... Ra5 {[%clk 0:00:41]} 29. Qb4
{[%clk 0:00:20.6]} 29... Qh4+ {[%clk 0:00:38.4]} 30. Ke2 {[%clk 0:00:19.7]}
30... Qg5 {[%clk 0:00:34.7]} 31. Rg1 {[%clk 0:00:20.3]} 31... Rh2 {[%clk
0:00:33.8]} 32. Kf1 {[%clk 0:00:21.2]} 32... Ra8 {[%clk 0:00:28.8]} 33. Rd7
{[%clk 0:00:20.3]} 33... Rd8 {[%clk 0:00:27.5]} 34. Qb5 {[%clk 0:00:21.3]} 34...
Kg8 {[%clk 0:00:17.1]} 35. Qd5 {[%clk 0:00:19.6]} 35... Rxd7 {[%clk 0:00:08.8]}
36. Qxd7 {[%clk 0:00:20.6]} 36... c6 {[%clk 0:00:07.5]} 37. Qxb7 {[%clk
0:00:21.3]} 37... Qd8 {[%clk 0:00:08.6]} 38. Ke2 {[%clk 0:00:21.3]} 38... c5
{[%clk 0:00:07]} 39. Qd5 {[%clk 0:00:21.6]} 39... Qc7 {[%clk 0:00:08]} 40. Kf2
{[%clk 0:00:21.5]} 40... Kg7 {[%clk 0:00:09.2]} 41. Rd1 {[%clk 0:00:19.4]} 41...
Qe7 {[%clk 0:00:10.8]} 42. Rg1 {[%clk 0:00:20.5]} 42... Qh4+ {[%clk 0:00:10.6]}
43. Kf1 {[%clk 0:00:20.9]} 43... Qe7 {[%clk 0:00:12.3]} 44. a4 {[%clk
0:00:21.1]} 44... Rh8 {[%clk 0:00:13.2]} 45. Ke2 {[%clk 0:00:20.3]} 45... Rd8
{[%clk 0:00:14.4]} 46. Qb3 {[%clk 0:00:21.4]} 46... Qc7 {[%clk 0:00:12.5]} 47.
Rd1 {[%clk 0:00:21.2]} 47... Rh8 {[%clk 0:00:12.7]} 48. Qd5 {[%clk 0:00:21.2]}
48... Rh2 {[%clk 0:00:13.7]} 49. Kf2 {[%clk 0:00:20.8]} 49... Qe7 {[%clk
0:00:14.6]} 50. Rg1 {[%clk 0:00:21.9]} 50... Qh4+ {[%clk 0:00:15]} 51. Kf1
{[%clk 0:00:23.1]} 51... Qe7 {[%clk 0:00:16.4]} 52. b3 {[%clk 0:00:22.3]} 52...
Rh8 {[%clk 0:00:16.6]} 53. Ke2 {[%clk 0:00:22.3]} 53... Rd8 {[%clk 0:00:17.5]}
54. Qc4 {[%clk 0:00:22.9]} 54... Qd6 {[%clk 0:00:18.6]} 55. Re1 {[%clk
0:00:23.9]} 55... Qd2+ {[%clk 0:00:17.6]} 56. Kf1 {[%clk 0:00:24.8]} 56... Rh8
{[%clk 0:00:18.5]} 57. Re2 {[%clk 0:00:25.2]} 57... Rh1+ {[%clk 0:00:17.3]} 58.
Kf2 {[%clk 0:00:26.5]} 58... Qd1 {[%clk 0:00:16.7]} 59. Qd5 {[%clk 0:00:26]}
59... Qf1# {[%clk 0:00:16.8]} 0-1

[Event "*** Titled Tuesday Blitz"]
[Site "Chess.com"]
[Date "2018.01.02"]
[Round "8"]
[White "Mikhail_Golubev"]
[Black "Zufi1811"]
[Result "1-0"]
[WhiteElo "2345"]
[BlackElo "2408"]
[TimeControl "180+2"]
[EndTime "14:49:18 PST"]
[Termination "Mikhail_Golubev won on time"]

1. e4 {[%clk 0:03:01.9]} 1... c5 {[%clk 0:02:59.2]} 2. Nf3 {[%clk 0:03:01.7]}
2... d6 {[%clk 0:03:00.6]} 3. d4 {[%clk 0:03:02]} 3... cxd4 {[%clk 0:03:02.5]}
4. Nxd4 {[%clk 0:03:02.7]} 4... Nf6 {[%clk 0:03:03.9]} 5. Nc3 {[%clk 0:03:03.3]}
5... a6 {[%clk 0:03:04.7]} 6. Bc4 {[%clk 0:03:03.4]} 6... e6 {[%clk 0:03:05.2]}
7. O-O {[%clk 0:03:03.8]} 7... b5 {[%clk 0:03:05.2]} 8. Bb3 {[%clk 0:03:03.7]}
8... Be7 {[%clk 0:03:03.9]} 9. Qf3 {[%clk 0:03:03.6]} 9... Qb6 {[%clk
0:03:05.3]} 10. Be3 {[%clk 0:03:03.3]} 10... Qb7 {[%clk 0:03:06.8]} 11. Qg3
{[%clk 0:03:04]} 11... b4 {[%clk 0:03:07.4]} 12. Na4 {[%clk 0:03:01.1]} 12...
Nbd7 {[%clk 0:03:08.8]} 13. f3 {[%clk 0:02:59]} 13... O-O {[%clk 0:03:06.1]} 14.
Rfd1 {[%clk 0:02:59.8]} 14... Ne5 {[%clk 0:03:03.2]} 15. Rac1 {[%clk 0:02:46.5]}
15... Bd7 {[%clk 0:02:57]} 16. Nb6 {[%clk 0:02:47.1]} 16... Nh5 {[%clk
0:02:50.3]} 17. Qh3 {[%clk 0:02:42.5]} 17... Nf4 {[%clk 0:02:51]} 18. Bxf4
{[%clk 0:02:41.9]} 18... Qxb6 {[%clk 0:02:51]} 19. Kh1 {[%clk 0:02:38.9]} 19...
Rfd8 {[%clk 0:02:06.3]} 20. Qg3 {[%clk 0:02:28.2]} 20... Ng6 {[%clk 0:02:01.6]}
21. Be3 {[%clk 0:02:27.2]} 21... Qb7 {[%clk 0:01:53.5]} 22. Bg5 {[%clk
0:02:18.6]} 22... Bxg5 {[%clk 0:01:38.5]} 23. Qxg5 {[%clk 0:02:18.3]} 23... a5
{[%clk 0:01:40]} 24. Nf5 {[%clk 0:02:14.5]} 24... exf5 {[%clk 0:01:31.3]} 25.
exf5 {[%clk 0:02:14.8]} 25... Nf8 {[%clk 0:01:21.3]} 26. f6 {[%clk 0:02:05.7]}
26... Ng6 {[%clk 0:01:20.8]} 27. h4 {[%clk 0:01:46]} 27... gxf6 {[%clk
0:01:10.3]} 28. Qxf6 {[%clk 0:01:46.1]} 28... Bc6 {[%clk 0:01:08.3]} 29. Re1
{[%clk 0:01:29.3]} 29... d5 {[%clk 0:00:38.5]} 30. h5 {[%clk 0:01:28.6]} 30...
Nf8 {[%clk 0:00:23.7]} 31. Re7 {[%clk 0:01:23.7]} 31... Qxe7 {[%clk 0:00:22.3]}
32. Qxe7 {[%clk 0:01:23.9]} 32... Ne6 {[%clk 0:00:23.9]} 33. a4 {[%clk
0:01:00.3]} 33... bxa3 {[%clk 0:00:23.6]} 34. bxa3 {[%clk 0:00:59.4]} 34... a4
{[%clk 0:00:25.5]} 35. Ba2 {[%clk 0:01:00.3]} 35... h6 {[%clk 0:00:26]} 36. c4
{[%clk 0:00:53.3]} 36... d4 {[%clk 0:00:25.5]} 37. c5 {[%clk 0:00:54.2]} 37...
Bd5 {[%clk 0:00:19.6]} 38. Bxd5 {[%clk 0:00:53.1]} 38... Rxd5 {[%clk 0:00:21.5]}
39. Qb7 {[%clk 0:00:46.3]} 39... Rdd8 {[%clk 0:00:12.6]} 40. c6 {[%clk
0:00:44.8]} 40... d3 {[%clk 0:00:10.7]} 41. c7 {[%clk 0:00:42.5]} 41... Rdc8
{[%clk 0:00:06.3]} 42. Qd5 {[%clk 0:00:39.3]} 42... Ra7 {[%clk 0:00:04.9]} 43.
Qxd3 {[%clk 0:00:34.1]} 43... Raxc7 {[%clk 0:00:06.8]} 44. Rxc7 {[%clk 0:00:33]}
44... Rxc7 {[%clk 0:00:08.7]} 45. Qe4 {[%clk 0:00:30.6]} 45... Rc5 {[%clk
0:00:09]} 46. g4 {[%clk 0:00:23.2]} 46... Rc3 {[%clk 0:00:07]} 47. Qxa4 {[%clk
0:00:21.9]} 47... Kg7 {[%clk 0:00:07.2]} 48. f4 {[%clk 0:00:17.7]} 48... Rg3
{[%clk 0:00:06.3]} 49. f5 {[%clk 0:00:17.4]} 49... Ng5 {[%clk 0:00:07.4]} 50.
Qd4+ {[%clk 0:00:16.6]} 50... Kh7 {[%clk 0:00:08.1]} 51. Qd6 {[%clk 0:00:04.8]}
51... Rxg4 {[%clk 0:00:06.8]} 52. Qd3 {[%clk 0:00:03.7]} 52... Kg7 {[%clk
0:00:02.8]} 53. Qc3+ {[%clk 0:00:03.1]} 53... Kh7 {[%clk 0:00:02.5]} 54. f6
{[%clk 0:00:02.8]} 1-0

[Event "*** Titled Tuesday Blitz"]
[Site "Chess.com"]
[Date "2018.01.02"]
[Round "8"]
[White "mokerslag"]
[Black "walkingcreep"]
[Result "1-0"]
[WhiteElo "2361"]
[BlackElo "2402"]
[TimeControl "180+2"]
[EndTime "14:49:32 PST"]
[Termination "mokerslag won by resignation"]

1. e4 {[%clk 0:03:01.2]} 1... d6 {[%clk 0:02:59.8]} 2. d4 {[%clk 0:03:00.7]}
2... Nf6 {[%clk 0:02:59]} 3. Nc3 {[%clk 0:03:01.6]} 3... Nbd7 {[%clk 0:02:59.8]}
4. Nf3 {[%clk 0:03:02.1]} 4... e5 {[%clk 0:03:00.8]} 5. Bc4 {[%clk 0:03:03.2]}
5... Be7 {[%clk 0:03:01.1]} 6. a4 {[%clk 0:03:03.9]} 6... O-O {[%clk 0:03:01]}
7. O-O {[%clk 0:03:05.2]} 7... c6 {[%clk 0:02:58.8]} 8. Re1 {[%clk 0:03:06.2]}
8... exd4 {[%clk 0:02:58.3]} 9. Nxd4 {[%clk 0:03:04.1]} 9... Ne5 {[%clk
0:02:59.1]} 10. Ba2 {[%clk 0:02:56.4]} 10... Re8 {[%clk 0:02:59.6]} 11. h3
{[%clk 0:02:54.1]} 11... Bd7 {[%clk 0:02:58.6]} 12. Bg5 {[%clk 0:02:53.9]} 12...
Qa5 {[%clk 0:02:55.8]} 13. Be3 {[%clk 0:02:48.3]} 13... Bd8 {[%clk 0:02:51]} 14.
Rb1 {[%clk 0:02:41]} 14... Qb4 {[%clk 0:02:44.3]} 15. Bg5 {[%clk 0:02:04.8]}
15... Bxh3 {[%clk 0:02:16.1]} 16. Nxc6 {[%clk 0:01:45.3]} 16... bxc6 {[%clk
0:02:06.8]} 17. gxh3 {[%clk 0:01:46.3]} 17... Ng6 {[%clk 0:01:53.5]} 18. Qd3
{[%clk 0:01:41.4]} 18... Nh5 {[%clk 0:01:51.5]} 19. Bd2 {[%clk 0:01:31.7]} 19...
Qc5 {[%clk 0:01:44]} 20. Qf3 {[%clk 0:01:27]} 20... Bg5 {[%clk 0:01:19.4]} 21.
Bxf7+ {[%clk 0:01:13.8]} 21... Kh8 {[%clk 0:01:15]} 22. Qxh5 {[%clk 0:01:14.6]}
22... Bxd2 {[%clk 0:01:10]} 23. Bxg6 {[%clk 0:00:54.7]} 23... Qxh5 {[%clk
0:01:05.7]} 24. Bxh5 {[%clk 0:00:55.8]} 24... Bxe1 {[%clk 0:01:04.1]} 25. Bxe8
{[%clk 0:00:55.3]} 25... Bxc3 {[%clk 0:01:03.2]} 26. Bxc6 {[%clk 0:00:51.3]}
26... Rb8 {[%clk 0:01:04.4]} 27. b3 {[%clk 0:00:44.9]} 27... Be5 {[%clk
0:01:01.6]} 28. Bd5 {[%clk 0:00:40.9]} 28... a5 {[%clk 0:01:00.3]} 29. Bc4
{[%clk 0:00:40.1]} 29... g5 {[%clk 0:01:00]} 30. Kg2 {[%clk 0:00:40.5]} 30...
Kg7 {[%clk 0:01:00.4]} 31. Rd1 {[%clk 0:00:41.7]} 31... Rc8 {[%clk 0:00:57.5]}
32. Rd5 {[%clk 0:00:42.3]} 32... Rc5 {[%clk 0:00:55.7]} 33. Rd3 {[%clk
0:00:43.5]} 33... Kf6 {[%clk 0:00:54.9]} 34. Rf3+ {[%clk 0:00:44.3]} 34... Bf4
{[%clk 0:00:56.1]} 35. h4 {[%clk 0:00:38.2]} 35... Ke5 {[%clk 0:00:50.9]} 36.
hxg5 {[%clk 0:00:35.8]} 36... Kxe4 {[%clk 0:00:51.6]} 37. Bd3+ {[%clk
0:00:36.9]} 37... Ke5 {[%clk 0:00:52.7]} 38. Bxh7 {[%clk 0:00:31.4]} 38... Bxg5
{[%clk 0:00:52.9]} 39. Rf5+ {[%clk 0:00:31.5]} 39... Ke6 {[%clk 0:00:42.9]} 40.
Rxc5 {[%clk 0:00:29.9]} 40... dxc5 {[%clk 0:00:44.8]} 41. Kf3 {[%clk 0:00:30.5]}
41... Ke5 {[%clk 0:00:42.6]} 42. Bd3 {[%clk 0:00:28.2]} 42... Bh4 {[%clk
0:00:36.5]} 43. Ke3 {[%clk 0:00:24.9]} 43... Bg5+ {[%clk 0:00:37.3]} 44. Kf3
{[%clk 0:00:21.9]} 44... Bh4 {[%clk 0:00:37.7]} 45. Bh7 {[%clk 0:00:21.8]} 45...
Kd4 {[%clk 0:00:34.9]} 46. Ke2 {[%clk 0:00:22.9]} 46... Ke5 {[%clk 0:00:34]} 47.
Ke3 {[%clk 0:00:23.7]} 47... Bg5+ {[%clk 0:00:28.7]} 48. Kd3 {[%clk 0:00:25]}
48... Bh4 {[%clk 0:00:29.8]} 49. f3 {[%clk 0:00:26.1]} 49... Bg3 {[%clk
0:00:20.9]} 50. Kc4 {[%clk 0:00:27]} 50... Kd6 {[%clk 0:00:21.9]} 51. Be4 {[%clk
0:00:27.7]} 51... Bf4 {[%clk 0:00:21.9]} 52. Kb5 {[%clk 0:00:28.7]} 52... Bd2
{[%clk 0:00:22.6]} 53. f4 {[%clk 0:00:28.8]} 53... Bxf4 {[%clk 0:00:19.2]} 54.
Kxa5 {[%clk 0:00:29.7]} 54... c4 {[%clk 0:00:20.7]} 55. Kb4 {[%clk 0:00:20.4]}
55... cxb3 {[%clk 0:00:20.9]} 56. cxb3 {[%clk 0:00:22.3]} 56... Kc7 {[%clk
0:00:21.2]} 57. Kb5 {[%clk 0:00:23.4]} 57... Be3 {[%clk 0:00:21.8]} 58. b4
{[%clk 0:00:21.8]} 58... Bf2 {[%clk 0:00:18.9]} 59. Ka6 {[%clk 0:00:22]} 59...
Bg1 {[%clk 0:00:19.2]} 60. b5 {[%clk 0:00:22.5]} 60... Bf2 {[%clk 0:00:15.6]}
61. a5 {[%clk 0:00:23.8]} 61... Kb8 {[%clk 0:00:11.2]} 62. b6 {[%clk 0:00:23.4]}
1-0